bitfinex-derivatives/quotes_BTCF0:USTF0_20251229
["timestamp","ask_amount","ask_price","bid_price","bid_amount"]
[1766999839071,0.0111831,89535.0,89520.0,0.15104]
[1766999839271,0.0111831,89535.0,89519.0,0.01135255]
[1766999839272,0.02370957,89534.0,89519.0,0.01135255]
[1766999839474,0.0111831,89535.0,89520.0,0.15104]
[1766999839671,0.02370947,89534.0,89521.0,0.056]
[1766999839970,0.0111831,89535.0,89521.0,0.056]
[1766999840173,0.02370946,89534.0,89521.0,0.056]
[1766999840371,0.0111831,89535.0,89521.0,0.056]
[1766999840562,0.02370941,89534.0,89521.0,0.056]
[1766999840761,0.0111831,89535.0,89521.0,0.056]
[1766999840973,0.02370942,89534.0,89521.0,0.056]
[1766999841169,0.17818518,89531.0,89521.0,0.056]
[1766999841369,0.17818518,89531.0,89522.0,0.056]
[1766999842169,0.18936878,89531.0,89522.0,0.056]
[1766999842975,0.18936878,89531.0,89519.0,0.00016755]
[1766999843175,0.18936878,89531.0,89520.0,0.056]
[1766999843375,0.18936878,89531.0,89521.0,0.056]
[1766999843576,0.18936878,89531.0,89520.0,0.056]
[1766999843777,0.18936878,89531.0,89519.0,0.00016755]
[1766999843979,0.0111838,89529.0,89520.0,0.056]
[1766999844378,0.0111241,89527.0,89514.0,0.09504]
[1766999844577,0.17818518,89531.0,89514.0,0.09504]
[1766999844578,0.17818518,89531.0,89515.0,0.056]
[1766999844778,0.0111838,89530.0,89515.0,0.056]
[1766999845280,0.011184,89528.0,89515.0,0.056]
[1766999845467,0.0111839,89529.0,89514.0,0.00016755]
[1766999845673,0.0111839,89529.0,89516.0,0.056]
[1766999845875,0.17835273,89531.0,89516.0,0.056]
[1766999846280,0.17818518,89530.0,89516.0,0.0671854]
[1766999846475,0.00016755,89531.0,89516.0,0.0671854]
[1766999847686,0.0111837,89530.0,89516.0,0.056]
[1766999848680,0.00016755,89531.0,89516.0,0.056]
[1766999849582,0.01135115,89531.0,89515.0,0.0111855]
[1766999849779,0.01135115,89531.0,89516.0,0.056]
[1766999851783,0.00016755,89531.0,89516.0,0.056]
[1766999852586,0.02360007,89530.0,89516.0,0.056]
[1766999852889,0.00016755,89531.0,89516.0,0.056]
[1766999853077,0.02360017,89530.0,89516.0,0.056]
[1766999853278,0.02360017,89529.0,89516.0,0.056]
[1766999853581,0.02360017,89528.0,89516.0,0.056]
[1766999853772,0.00016755,89531.0,89516.0,0.056]
[1766999853971,0.02360199,89530.0,89516.0,0.056]
[1766999854177,0.02360199,89529.0,89516.0,0.056]
[1766999854377,0.02360199,89528.0,89516.0,0.056]
[1766999854575,0.02360199,89527.0,89516.0,0.056]
[1766999854774,0.0111846,89523.0,89502.0,0.056]
[1766999854980,0.07960166,89522.0,89502.0,0.086]
[1766999855182,0.011185,89520.0,89502.0,0.0971871]
[1766999855374,0.011185,89520.0,89502.0,0.0411871]
[1766999855776,0.02359858,89519.0,89502.0,0.04135465]
[1766999855981,0.02359858,89518.0,89502.0,0.04135465]
[1766999856275,0.056,89522.0,89504.0,0.0111869]
[1766999856575,0.02359032,89521.0,89504.0,0.0411869]
[1766999856778,0.02359032,89520.0,89504.0,0.0411869]
[1766999856985,0.02359032,89519.0,89504.0,0.0411869]
[1766999857287,0.056,89522.0,89504.0,0.0411869]
[1766999857480,0.02358448,89521.0,89504.0,0.0411869]
[1766999857682,0.02358448,89520.0,89504.0,0.0411869]
[1766999857881,0.02358448,89519.0,89504.0,0.0411869]
[1766999858083,0.056,89522.0,89504.0,0.0411869]
[1766999858281,0.03476475,89521.0,89504.0,0.0411869]
[1766999858487,0.02357985,89520.0,89504.0,0.0411869]
[1766999858688,0.02357985,89519.0,89504.0,0.03]
[1766999858986,0.0111849,89521.0,89504.0,0.03]
[1766999859288,0.02357983,89520.0,89504.0,0.03]
[1766999859488,0.02357983,89519.0,89504.0,0.03]
[1766999859690,0.0111849,89521.0,89504.0,0.03]
[1766999859890,0.02357603,89520.0,89504.0,0.03]
[1766999860187,0.0111849,89521.0,89504.0,0.0411869]
[1766999860385,2.92e-06,89520.0,89506.0,0.0111866]
[1766999860585,0.056,89522.0,89506.0,0.0111866]
[1766999860983,0.0671847,89522.0,89506.0,0.0111866]
[1766999861290,0.056,89522.0,89506.0,0.0111866]
[1766999862290,0.056,89522.0,89505.0,0.0111868]
[1766999862491,0.056,89522.0,89505.0,0.0411868]
[1766999863693,0.0111849,89521.0,89505.0,0.03]
[1766999863990,0.0111849,89521.0,89502.0,0.01135465]
[1766999864192,0.0111849,89521.0,89502.0,0.04135465]
[1766999864990,0.056,89522.0,89502.0,0.04135465]
[1766999865194,0.0111849,89520.0,89502.0,0.03016755]
[1766999865992,0.0111853,89518.0,89502.0,0.03016755]
[1766999866391,0.011186,89512.0,89494.0,0.0111882]
[1766999866594,0.011186,89512.0,89494.0,0.0411882]
[1766999866891,0.09504,89515.0,89494.0,0.03]
[1766999867394,0.00016755,89513.0,89496.0,0.00016755]
[1766999867587,0.00016755,89513.0,89496.0,0.03016755]
[1766999867781,0.00016755,89513.0,89500.0,0.0111874]
[1766999867987,0.00016755,89513.0,89500.0,0.0411874]
[1766999868692,0.05616755,89513.0,89500.0,0.0411874]
[1766999869294,0.05616755,89513.0,89500.0,0.03]
[1766999871382,0.0111848,89522.0,89500.0,0.03]
[1766999871586,0.011185,89520.0,89503.0,0.011187]
[1766999871790,0.09504,89519.0,89503.0,0.041187]
[1766999872291,0.09504,89519.0,89503.0,0.03]
[1766999872494,0.0111852,89518.0,89503.0,0.03]
[1766999874190,0.09504,89519.0,89503.0,0.03]
[1766999874392,0.02339595,89518.0,89503.0,0.03]
[1766999874590,0.09504,89519.0,89503.0,0.03]
[1766999874793,0.02339588,89518.0,89503.0,0.03]
[1766999874993,0.09504,89519.0,89503.0,0.03]
[1766999875194,0.02339587,89518.0,89496.0,0.00016755]
[1766999875390,0.0101852,89518.0,89496.0,0.03]
[1766999875590,0.0111888,89490.0,89447.0,0.09988385]
[1766999875798,0.0111872,89503.0,89447.0,0.03]
[1766999875799,0.02338982,89489.0,89447.0,0.03]
[1766999875994,0.1114,89488.0,89467.0,0.0111915]
[1766999876200,0.12032,89487.0,89467.0,0.0411915]
[1766999876509,0.00024851,89486.0,89473.0,0.0111908]
[1766999877303,0.00024851,89486.0,89468.0,0.00016766]
[1766999877304,0.00024851,89486.0,89469.0,0.0111912]
[1766999877488,0.00024851,89486.0,89469.0,0.0411912]
[1766999877893,0.00024851,89486.0,89469.0,0.0111912]
[1766999878101,0.00024851,89486.0,89469.0,0.0411912]
[1766999878303,0.00024851,89486.0,89469.0,0.0111912]
[1766999878917,0.00024851,89486.0,89472.0,0.0111909]
[1766999879105,0.00024851,89486.0,89468.0,0.01135896]
[1766999879416,0.00024851,89486.0,89468.0,0.04135896]
[1766999882215,0.00024851,89486.0,89469.0,0.0111913]
[1766999882519,0.00024851,89486.0,89469.0,0.0211913]
[1766999882719,0.00024851,89486.0,89470.0,0.0111911]
[1766999882911,0.00024851,89486.0,89476.0,0.0111903]
[1766999883111,0.04528,89492.0,89479.0,0.0111901]
[1766999883519,0.09508,89493.0,89479.0,0.0111901]
[1766999883714,0.09508,89493.0,89482.0,0.0111897]
[1766999884017,0.15112,89500.0,89490.0,0.0111887]
[1766999884318,0.05604,89502.0,89490.0,0.03]
[1766999884522,0.05599,89503.0,89479.0,0.09508]
[1766999884711,0.05604,89503.0,89479.0,0.13627]
[1766999885013,0.05604,89503.0,89482.0,0.0111896]
[1766999885212,0.00016766,89500.0,89487.0,0.011189]
[1766999885411,0.00016766,89500.0,89487.0,0.03]
[1766999887322,0.00016766,89500.0,89487.0,0.02995]
[1766999887821,0.00016766,89500.0,89487.0,0.03]
[1766999890019,0.00016766,89500.0,89482.0,0.09524766]
[1766999890225,0.00016766,89500.0,89482.0,0.12524766]
[1766999891124,0.00016766,89500.0,89484.0,0.0111894]
[1766999891322,0.05604,89503.0,89484.0,0.0972294]
[1766999891511,0.05604,89503.0,89484.0,0.1923094]
[1766999892518,0.00016766,89502.0,89484.0,0.1923094]
[1766999899726,0.0111874,89501.0,89484.0,0.1923094]
[1766999900029,0.00016766,89502.0,89486.0,0.0111891]
[1766999900228,0.00016766,89502.0,89486.0,0.0411891]
[1766999900429,0.15112,89513.0,89488.0,0.0111889]
[1766999900727,0.23768,89532.0,89495.0,0.011188]
[1766999900728,0.0252924,89512.0,89495.0,0.011188]
[1766999900923,0.0252924,89511.0,89495.0,0.03]
[1766999901120,0.0252924,89510.0,89495.0,0.03]
[1766999901317,0.0111863,89509.0,89495.0,0.03]
[1766999903227,0.02530027,89508.0,89495.0,0.03]
[1766999903429,0.02530027,89507.0,89495.0,0.03]
[1766999903734,0.05604,89514.0,89493.0,0.00016766]
[1766999903933,0.011186,89512.0,89493.0,0.00016766]
[1766999904231,0.0111873,89502.0,89493.0,0.03016766]
[1766999907031,0.0111871,89503.0,89493.0,0.03016766]
[1766999907734,0.0111868,89506.0,89493.0,0.03016766]
[1766999908031,0.02623873,89505.0,89493.0,0.03016766]
[1766999908234,0.02623873,89504.0,89493.0,0.03016766]
[1766999908534,0.02623873,89503.0,89493.0,0.03016766]
[1766999908834,0.0111868,89506.0,89493.0,0.03016766]
[1766999909025,0.0262267,89505.0,89493.0,0.03016766]
[1766999909226,0.0374136,89504.0,89493.0,0.03016766]
[1766999909427,0.0262267,89503.0,89493.0,0.00016766]
[1766999909621,0.0262267,89502.0,89493.0,0.00016766]
[1766999909826,0.011187,89504.0,89493.0,0.03016766]
[1766999910136,0.02623502,89503.0,89493.0,0.03016766]
[1766999910323,0.02623502,89502.0,89493.0,0.03016766]
[1766999910528,0.02623502,89501.0,89493.0,0.03016766]
[1766999910728,0.0111867,89506.0,89493.0,0.03016766]
[1766999911038,0.011187,89504.0,89493.0,0.03016766]
[1766999911232,0.02623537,89503.0,89493.0,0.03016766]
[1766999911434,0.02623537,89502.0,89493.0,0.03016766]
[1766999911629,0.02623537,89501.0,89493.0,0.03016766]
[1766999911844,0.02623537,89500.0,89493.0,0.03016766]
[1766999912134,0.0111872,89502.0,89493.0,0.03016766]
[1766999912336,0.02624507,89501.0,89493.0,0.03016766]
[1766999912638,0.02624507,89500.0,89493.0,0.03016766]
[1766999912833,0.02624507,89499.0,89493.0,0.03016766]
[1766999913041,0.0111869,89505.0,89493.0,0.03016766]
[1766999913235,0.02625747,89504.0,89493.0,0.03016766]
[1766999913434,0.0111869,89505.0,89493.0,0.03016766]
[1766999913435,0.02625747,89503.0,89493.0,0.03016766]
[1766999913635,0.02625747,89502.0,89493.0,0.03016766]
[1766999913941,0.02625747,89501.0,89493.0,0.03016766]
[1766999914140,0.0111869,89505.0,89493.0,0.03016766]
[1766999914441,0.0262641,89504.0,89493.0,0.03016766]
[1766999914737,0.0262641,89503.0,89493.0,0.03016766]
[1766999914938,0.0262641,89502.0,89493.0,0.03016766]
[1766999915139,0.0262641,89501.0,89493.0,0.03016766]
[1766999915340,0.0111869,89505.0,89493.0,0.03016766]
[1766999915533,0.02626395,89504.0,89493.0,0.03016766]
[1766999915740,0.02626395,89503.0,89493.0,0.03016766]
[1766999915940,0.02626395,89502.0,89493.0,0.03016766]
[1766999916240,0.02626395,89501.0,89493.0,0.03016766]
[1766999916431,0.05604,89514.0,89493.0,0.03016766]
[1766999916632,0.0262632,89513.0,89500.0,0.17831114]
[1766999916931,0.0262632,89512.0,89500.0,0.26435114]
[1766999920930,0.0262632,89512.0,89500.0,0.05604]
[1766999921137,0.0262632,89512.0,89500.0,0.26435114]
[1766999921441,0.0262632,89512.0,89500.0,0.08604]
[1766999926444,0.0262632,89511.0,89501.0,0.0111873]
[1766999926642,0.0262632,89510.0,89501.0,0.03]
[1766999926846,0.09508,89524.0,89501.0,0.03]
[1766999927038,0.09508,89524.0,89511.0,0.011186]
[1766999927342,0.05604,89529.0,89514.0,0.0111856]
[1766999927543,0.05604,89529.0,89514.0,0.03]
[1766999931847,0.0672239,89529.0,89514.0,0.03]
[1766999932044,0.0111844,89525.0,89513.0,0.00016756]
[1766999932249,0.0111852,89519.0,89511.0,0.05604]
[1766999932445,0.0111854,89517.0,89508.0,0.05604]
[1766999933745,0.0111854,89517.0,89504.0,0.00016756]
[1766999933946,0.0111854,89517.0,89505.0,0.05604]
[1766999935652,0.011185,89520.0,89505.0,0.05604]
[1766999935853,0.0111852,89518.0,89505.0,0.08604]
[1766999936654,0.0111851,89519.0,89505.0,0.08604]
[1766999940450,0.0001675,89521.0,89505.0,0.08604]
[1766999940652,0.0111855,89516.0,89505.0,0.08604]
[1766999941356,0.0111855,89516.0,89505.0,0.03]
[1766999941656,0.0111851,89519.0,89506.0,0.05604]
[1766999941867,0.0111851,89519.0,89506.0,0.08604]
[1766999942048,0.05604,89529.0,89509.0,0.17831114]
[1766999942254,0.02501281,89528.0,89509.0,0.20831114]
[1766999942455,0.02501281,89527.0,89513.0,0.0111858]
[1766999942659,0.02501281,89526.0,89514.0,0.05604]
[1766999942959,0.02501281,89525.0,89514.0,0.08604]
[1766999943160,0.05604,89529.0,89514.0,0.08604]
[1766999943354,0.03619867,89528.0,89514.0,0.08604]
[1766999943550,0.0111842,89526.0,89514.0,0.08604]
[1766999943755,0.02501467,89525.0,89514.0,0.08604]
[1766999943956,0.02501467,89525.0,89514.0,0.03]
[1766999944157,0.02501467,89525.0,89515.0,0.05604]
[1766999944365,0.02501467,89525.0,89515.0,0.08604]
[1766999944963,0.02501467,89525.0,89515.0,0.05604]
[1766999947658,0.05604,89529.0,89515.0,0.05604]
[1766999948766,0.05604,89529.0,89515.0,0.08604]
[1766999953471,0.05604,89529.0,89515.0,0.05604]
[1766999953671,0.05604,89529.0,89515.0,0.08604]
[1766999954557,0.0111843,89526.0,89515.0,0.08604]
[1766999954763,0.0111843,89526.0,89515.0,0.05604]
[1766999956973,0.0111843,89526.0,89516.0,0.05604]
[1766999957373,0.0111846,89523.0,89516.0,0.05604]
[1766999958973,0.0111843,89526.0,89516.0,0.05604]
[1766999959475,0.0111845,89524.0,89516.0,0.05604]
[1766999959772,0.02493644,89523.0,89516.0,0.05604]
[1766999959973,0.02493644,89522.0,89516.0,0.05604]
[1766999960174,0.02493644,89521.0,89516.0,0.05604]
[1766999960374,0.02493644,89520.0,89516.0,0.05604]
[1766999960569,0.0111842,89527.0,89516.0,0.05604]
[1766999960874,0.0249359,89526.0,89516.0,0.05604]
[1766999961073,0.0249359,89525.0,89516.0,0.05604]
[1766999961273,0.0249359,89524.0,89516.0,0.05604]
[1766999961474,0.0249359,89523.0,89516.0,0.05604]
[1766999961774,0.0249359,89522.0,89516.0,0.05604]
[1766999961969,0.0249359,89521.0,89516.0,0.05604]
[1766999962177,0.0249359,89520.0,89516.0,0.05604]
[1766999962472,0.0111842,89527.0,89516.0,0.05604]
[1766999962673,0.05604,89529.0,89516.0,0.05604]
[1766999962674,0.05604,89529.0,89516.0,0.08604]
[1766999963066,0.09504,89531.0,89516.0,0.08604]
[1766999963271,0.0111837,89530.0,89516.0,0.08604]
[1766999963770,0.0111835,89532.0,89516.0,0.08604]
[1766999964384,0.0111838,89530.0,89516.0,0.08604]
[1766999964769,0.0672233,89533.0,89516.0,0.08604]
[1766999965272,0.0672233,89533.0,89516.0,0.05604]
[1766999965477,0.0672233,89533.0,89516.0,0.08604]
[1766999965877,0.05604,89533.0,89516.0,0.08604]
[1766999967076,0.05604,89533.0,89516.0,0.0972254]
[1766999969472,0.05604,89533.0,89516.0,0.08604]
[1766999969879,0.0111835,89532.0,89516.0,0.08604]
[1766999970082,0.0111838,89530.0,89516.0,0.05604]
[1766999970273,0.0111838,89530.0,89516.0,0.08604]
[1766999970472,0.0672234,89533.0,89516.0,0.08604]
[1766999975090,0.0111836,89531.0,89516.0,0.08604]
[1766999979491,0.0111843,89526.0,89516.0,0.05604]
[1766999979686,0.0111845,89524.0,89506.0,0.0111866]
[1766999979893,0.0111845,89524.0,89507.0,0.15104]
[1766999980088,0.0111845,89524.0,89507.0,0.29274251]
[1766999981389,0.0111845,89524.0,89507.0,0.14170251]
[1766999981593,0.0111845,89524.0,89508.0,0.15104]
[1766999981796,0.0111848,89522.0,89509.0,0.15104]
[1766999981993,0.0111844,89525.0,89509.0,0.18104]
[1766999982191,0.0111844,89525.0,89509.0,0.03]
[1766999982393,0.0111844,89525.0,89510.0,0.15104]
[1766999982596,0.0111844,89525.0,89510.0,0.18104]
[1766999985301,0.0111844,89525.0,89511.0,0.15104]
[1766999985504,0.0111844,89525.0,89511.0,0.18104]
[1766999986604,0.0111844,89525.0,89511.0,0.15104]
[1766999986805,0.0111844,89525.0,89511.0,0.18104]
[1766999987102,0.0111844,89525.0,89511.0,0.03]
[1766999987310,0.0111844,89525.0,89512.0,0.15104]
[1766999987505,0.011184,89528.0,89512.0,0.18104]
[1766999987810,0.0111838,89529.0,89512.0,0.1922259]
[1766999993011,0.0111838,89529.0,89512.0,0.18104]
[1766999993311,0.0111838,89529.0,89513.0,0.0111858]
[1766999993512,0.0111838,89529.0,89513.0,0.0411858]
[1766999997411,0.0111838,89529.0,89514.0,0.056]
[1766999997606,0.0111838,89529.0,89514.0,0.086]
[1766999998818,0.15104,89538.0,89514.0,0.086]
[1766999998819,0.0111832,89535.0,89514.0,0.086]
[1766999999316,0.0111832,89535.0,89515.0,0.0111855]
[1766999999617,0.0111833,89534.0,89517.0,0.0111853]
[1766999999912,0.0111833,89534.0,89517.0,0.0411853]
[1767000000416,0.0111833,89534.0,89517.0,0.03]
[1767000001420,0.0111831,89535.0,89517.0,0.03]
[1767000001717,0.0111834,89533.0,89517.0,0.03]
[1767000002214,0.0111834,89533.0,89516.0,0.056]
[1767000002412,0.15104,89538.0,89516.0,0.086]
[1767000004115,0.0111839,89529.0,89516.0,0.086]
[1767000006119,0.0111839,89529.0,89516.0,0.056]
[1767000009719,0.0111841,89527.0,89516.0,0.056]
[1767000011524,0.0111841,89527.0,89516.0,0.086]
[1767000014525,0.0111837,89530.0,89516.0,0.086]
[1767000015728,0.0111834,89533.0,89516.0,0.086]
[1767000015930,0.0111834,89533.0,89517.0,0.0111853]
[1767000016129,0.0111834,89533.0,89517.0,0.0411853]
[1767000016932,0.0111837,89530.0,89517.0,0.03]
[1767000017527,0.0111834,89533.0,89517.0,0.03]
[1767000018031,0.15104,89538.0,89517.0,0.03]
[1767000018930,0.0111837,89530.0,89517.0,0.03]
[1767000019131,0.0111837,89530.0,89516.0,0.0111854]
[1767000021030,0.0111837,89530.0,89513.0,0.0671857]
[1767000021331,0.0111837,89530.0,89515.0,0.0111855]
[1767000021532,0.0111837,89530.0,89515.0,0.0411855]
[1767000022527,0.0111837,89530.0,89515.0,0.0111855]
[1767000022829,0.011184,89528.0,89512.0,0.0111859]
[1767000023031,0.011184,89528.0,89514.0,0.0111856]
[1767000023221,0.011184,89528.0,89514.0,0.0411856]
[1767000023423,0.011184,89528.0,89514.0,0.03]
[1767000025933,0.0111836,89531.0,89514.0,0.03]
[1767000026235,0.0111836,89531.0,89513.0,0.0111858]
[1767000026430,0.0111836,89531.0,89513.0,0.0411858]
[1767000026934,0.15104,89538.0,89515.0,0.0111855]
[1767000027134,0.15104,89538.0,89515.0,0.0411855]
[1767000027838,0.0111836,89531.0,89515.0,0.0111855]
[1767000028037,0.0111836,89531.0,89515.0,0.0411855]
[1767000029038,0.0111833,89534.0,89515.0,0.0411855]
[1767000029637,0.0111835,89532.0,89515.0,0.0411855]
[1767000030527,0.0111835,89532.0,89515.0,0.0111855]
[1767000030725,0.0111835,89532.0,89515.0,0.0411855]
[1767000031340,0.09504,89531.0,89515.0,0.0411855]
[1767000032035,0.09504,89531.0,89510.0,0.17821877]
[1767000032036,0.17821877,89530.0,89509.0,0.0111863]
[1767000032240,0.056,89529.0,89509.0,0.0411863]
[1767000032442,0.056,89529.0,89511.0,0.011186]
[1767000032443,0.0671839,89529.0,89511.0,0.011186]
[1767000035739,0.0111841,89527.0,89508.0,0.0111864]
[1767000035944,0.0111841,89527.0,89508.0,0.0411864]
[1767000037945,0.0111841,89527.0,89510.0,0.0111861]
[1767000038142,0.056,89529.0,89510.0,0.0111861]
[1767000038542,0.056,89529.0,89510.0,0.0411861]
[1767000039248,0.011184,89528.0,89510.0,0.0411861]
[1767000039543,0.0111842,89526.0,89510.0,0.0111861]
[1767000039742,0.056,89529.0,89504.0,0.00016756]
[1767000039743,0.17821877,89520.0,89504.0,0.00016756]
[1767000039948,0.0111857,89514.0,89504.0,0.00016756]
[1767000043648,0.0111854,89517.0,89504.0,0.00016756]
[1767000044049,0.067185,89520.0,89504.0,0.03016756]
[1767000044250,0.24540377,89520.0,89504.0,0.03016756]
[1767000044551,0.0111853,89518.0,89504.0,0.03016756]
[1767000045352,0.23421877,89520.0,89504.0,0.03016756]
[1767000048343,0.23421877,89520.0,89504.0,0.04135446]
[1767000048543,0.23421877,89520.0,89506.0,0.0111866]
[1767000048747,0.23421877,89520.0,89508.0,0.0111863]
[1767000048748,0.056,89520.0,89508.0,0.0111863]
[1767000049054,0.056,89520.0,89510.0,0.0111862]
[1767000049552,0.0111837,89530.0,89510.0,0.20821877]
[1767000049756,0.15104,89529.0,89510.0,0.03]
[1767000049955,0.011184,89528.0,89511.0,0.011186]
[1767000050157,0.011184,89528.0,89511.0,0.041186]
[1767000050364,0.011184,89528.0,89511.0,0.03]
[1767000050857,0.15104,89527.0,89511.0,0.03]
[1767000052456,0.0111842,89526.0,89508.0,0.0111864]
[1767000052657,0.0111842,89526.0,89508.0,0.0411864]
[1767000055462,0.15104,89527.0,89510.0,0.0111861]
[1767000055463,0.1622241,89527.0,89510.0,0.0111861]
[1767000055662,0.1622241,89527.0,89510.0,0.0411861]
[1767000058360,0.0111844,89525.0,89510.0,0.03]
[1767000060667,0.15104,89527.0,89510.0,0.03]
[1767000060862,0.1622242,89527.0,89510.0,0.03]
[1767000061767,0.0111844,89525.0,89510.0,0.03]
[1767000064166,0.0111844,89525.0,89507.0,0.0111865]
[1767000064370,0.0111844,89525.0,89504.0,0.00016756]
[1767000064371,0.0111844,89525.0,89509.0,0.0111863]
[1767000064671,0.0111844,89525.0,89509.0,0.0411863]
[1767000066369,0.02334269,89524.0,89509.0,0.03]
[1767000066571,0.0111844,89525.0,89509.0,0.03]
[1767000067173,0.02334268,89524.0,89509.0,0.03]
[1767000067365,0.0111844,89525.0,89509.0,0.03]
[1767000067565,0.02334405,89524.0,89509.0,0.03]
[1767000067770,0.0111844,89525.0,89509.0,0.03]
[1767000067971,0.02334405,89524.0,89509.0,0.03]
[1767000068170,0.0111844,89525.0,89509.0,0.03]
[1767000068473,0.07934423,89524.0,89504.0,0.00016756]
[1767000068668,0.056,89524.0,89504.0,0.03016756]
[1767000068868,0.056,89524.0,89509.0,0.0111863]
[1767000070275,0.056,89524.0,89506.0,0.0111866]
[1767000070469,0.056,89524.0,89506.0,0.0411866]
[1767000070671,0.0111849,89521.0,89506.0,0.03]
[1767000070870,0.0111858,89514.0,89504.0,0.00016756]
[1767000071172,0.0111858,89514.0,89497.0,0.0671878]
[1767000071371,0.0111858,89514.0,89497.0,0.03]
[1767000072277,0.01135336,89514.0,89497.0,0.03016756]
[1767000073981,0.00016756,89514.0,89498.0,0.0111877]
[1767000074180,0.00016756,89514.0,89498.0,0.0411877]
[1767000081387,0.00016756,89514.0,89500.0,0.0111874]
[1767000081587,0.00016756,89514.0,89500.0,0.0411874]
[1767000087202,0.00016756,89514.0,89502.0,0.0111871]
[1767000087399,0.00016756,89514.0,89502.0,0.0411871]
[1767000088401,0.00016756,89514.0,89502.0,0.03]
[1767000088599,0.01135326,89514.0,89502.0,0.03]
[1767000090302,0.00016756,89514.0,89502.0,0.03]
[1767000091097,0.0111859,89513.0,89497.0,0.00016756]
[1767000091302,0.0111864,89509.0,89497.0,0.00016756]
[1767000091798,0.02339145,89508.0,89497.0,0.00016756]
[1767000092095,0.23421877,89510.0,89497.0,0.00016756]
[1767000092301,0.02339153,89509.0,89497.0,0.00016756]
[1767000092503,0.056,89510.0,89497.0,0.00016756]
[1767000092704,0.02338753,89509.0,89497.0,0.00016756]
[1767000093007,0.056,89510.0,89497.0,0.00016756]
[1767000099611,0.0671862,89510.0,89497.0,0.00016756]
[1767000100908,0.0671862,89510.0,89492.0,0.0111884]
[1767000101106,0.0671862,89510.0,89492.0,0.0411884]
[1767000101704,0.056,89510.0,89479.0,0.06036016]
[1767000101901,0.0111874,89501.0,89482.0,0.0111896]
[1767000102104,0.0111874,89501.0,89486.0,0.00016756]
[1767000102302,0.0111874,89501.0,89486.0,0.03016756]
[1767000103602,0.0111872,89502.0,89486.0,0.04135666]
[1767000103796,0.00016756,89503.0,89486.0,0.04135666]
[1767000104004,0.01135466,89503.0,89488.0,0.0111889]
[1767000104305,0.01135466,89503.0,89488.0,0.0411889]
[1767000105007,0.00016756,89503.0,89488.0,0.0411889]
[1767000106600,0.00016756,89503.0,89490.0,0.0111887]
[1767000106905,0.00016756,89503.0,89490.0,0.0411887]
[1767000107505,0.00016756,89503.0,89490.0,0.03]
[1767000109007,0.00016756,89503.0,89486.0,0.00016756]
[1767000109208,0.00016756,89503.0,89489.0,0.0111887]
[1767000109505,0.00016756,89503.0,89489.0,0.0411887]
[1767000111005,0.0111872,89502.0,89489.0,0.03]
[1767000111208,0.00016756,89503.0,89490.0,0.0111887]
[1767000111505,0.00016756,89503.0,89490.0,0.03]
[1767000112405,0.0111872,89502.0,89490.0,0.03]
[1767000112606,0.0111875,89500.0,89490.0,0.03]
[1767000113506,0.01135476,89503.0,89490.0,0.03]
[1767000114509,0.0111876,89499.0,89490.0,0.03]
[1767000115006,0.0111873,89502.0,89490.0,0.03]
[1767000117011,0.0111875,89500.0,89490.0,0.03]
[1767000117309,0.00016756,89503.0,89490.0,0.03]
[1767000118207,0.0111874,89501.0,89490.0,0.03]
[1767000119100,0.0111874,89501.0,89486.0,0.00016756]
[1767000119296,0.0111874,89501.0,89486.0,0.03016756]
[1767000120011,0.0111874,89501.0,89487.0,0.011189]
[1767000120214,0.0111874,89501.0,89487.0,0.041189]
[1767000120409,0.0111874,89501.0,89486.0,0.00016756]
[1767000120608,0.0111874,89501.0,89486.0,0.03016756]
[1767000122712,0.0111874,89501.0,89486.0,0.04135676]
[1767000123008,0.00016756,89503.0,89486.0,0.04135676]
[1767000123313,0.0111872,89502.0,89486.0,0.04135676]
[1767000123814,0.0111872,89502.0,89488.0,0.0111889]
[1767000124014,0.00016756,89503.0,89488.0,0.0411889]
[1767000124314,0.00016756,89503.0,89488.0,0.03]
[1767000124509,0.09504,89506.0,89488.0,0.03]
[1767000124717,0.09504,89506.0,89497.0,0.0111877]
[1767000125208,0.0111857,89514.0,89497.0,0.0111877]
[1767000125414,0.02341038,89513.0,89497.0,0.0111877]
[1767000125615,0.02341038,89512.0,89497.0,0.0111877]
[1767000125808,0.02341038,89511.0,89494.0,0.0111881]
[1767000126008,0.02341038,89511.0,89494.0,0.0411881]
[1767000126209,0.02341038,89511.0,89494.0,0.0111881]
[1767000127209,0.02341038,89511.0,89496.0,0.0111879]
[1767000127414,0.02341038,89511.0,89493.0,0.0111882]
[1767000127610,0.0111865,89508.0,89490.0,0.0111886]
[1767000127810,0.0111865,89508.0,89492.0,0.0111884]
[1767000128410,0.0111861,89511.0,89492.0,0.0111884]
[1767000128715,0.02341465,89510.0,89492.0,0.0111884]
[1767000128914,0.02341465,89509.0,89492.0,0.0111884]
[1767000129117,0.0111861,89511.0,89492.0,0.0111884]
[1767000129308,0.02341633,89510.0,89492.0,0.0111884]
[1767000129504,0.02341633,89509.0,89492.0,0.0111884]
[1767000129706,0.0111861,89511.0,89492.0,0.0111884]
[1767000129907,0.02341647,89510.0,89492.0,0.0111884]
[1767000130110,0.02341647,89509.0,89492.0,0.0111884]
[1767000130313,0.0111861,89511.0,89492.0,0.0111884]
[1767000130507,0.02341884,89510.0,89492.0,0.0111884]
[1767000130719,0.02341884,89509.0,89492.0,0.0111884]
[1767000130919,0.0111861,89511.0,89492.0,0.0111884]
[1767000131217,0.02341883,89510.0,89492.0,0.0111884]
[1767000131417,0.02341883,89509.0,89492.0,0.0111884]
[1767000131718,0.02341883,89508.0,89492.0,0.0111884]
[1767000131917,0.0111864,89508.0,89492.0,0.0111884]
[1767000132418,0.011186,89512.0,89492.0,0.0111884]
[1767000132616,0.02342649,89511.0,89494.0,0.0111881]
[1767000132817,0.02342649,89510.0,89494.0,0.0111881]
[1767000133018,0.02342649,89509.0,89496.0,0.0111879]
[1767000133214,0.02342649,89508.0,89496.0,0.0111879]
[1767000133418,0.02342649,89507.0,89496.0,0.0111879]
[1767000133619,0.011186,89512.0,89496.0,0.0111879]
[1767000133918,0.02342852,89511.0,89496.0,0.0111879]
[1767000134221,0.02342852,89510.0,89496.0,0.0111879]
[1767000134416,0.02342852,89509.0,89493.0,0.0111883]
[1767000137021,0.02342852,89509.0,89495.0,0.011188]
[1767000137216,0.02342852,89508.0,89495.0,0.011188]